fUSD/lending_fUSD_20251119
["ID","MTS","AMOUNT","RATE_DAILY","PERIOD"]
[394415671,1763545946369,151.930757,0.00042165,120]
[394415672,1763545946397,152.077703,0.00042165,120]
[394415673,1763545946428,153.575775,0.00042165,120]
[394415674,1763545946455,152.168976,0.00042165,120]
[394415675,1763545946490,151.930757,0.00042165,120]
[394415676,1763545946520,152.168976,0.00042165,120]
[394415677,1763545946549,153.575775,0.00042165,120]
[394415678,1763545946590,152.168976,0.00042165,120]
[394415679,1763545946619,153.575775,0.00042165,120]
[394415680,1763545946656,152.168976,0.00042165,120]
[394415681,1763545946690,153.575775,0.00042165,120]
[394415682,1763545946730,152.168976,0.00042165,120]
[394415683,1763545946758,153.575775,0.00042165,120]
[394415684,1763545946791,152.168976,0.00042165,120]
[394415685,1763545946823,153.575775,0.00042165,120]
[394415686,1763545946856,152.168976,0.00042165,120]
[394415687,1763545946885,153.575775,0.00042165,120]
[394415688,1763545946919,152.168976,0.00042165,120]
[394415689,1763545946951,153.575775,0.00042165,120]
[394415690,1763545946984,152.168976,0.00042165,120]
[394415691,1763545947016,153.575775,0.00042165,120]
[394415692,1763545947051,152.168976,0.00042165,120]
[394415693,1763545947089,152.168976,0.00042165,120]
[394415694,1763545947140,152.168976,0.00042165,120]
[394415695,1763545947206,152.168976,0.00042165,120]
[394415710,1763546084290,570.65660765,0.00042165,30]
[394415737,1763546520240,-1000.0,0.00034,2]
[394415738,1763546520264,-305.49926359,0.00034,2]
[394415740,1763546823280,157.46204088,0.00015,20]
[394415770,1763547031612,-320.65660765,0.00036031,30]
[394415771,1763547031664,-250.0,0.00036031,30]
[394415772,1763547031676,-1825.06357538,0.00036031,30]
[394415773,1763547031718,-1572.27364744,0.00036031,30]
[394415774,1763547031729,-1032.00616953,0.00036031,30]
[394415775,1763547031738,-16.29492816,0.00036031,2]
[394415776,1763547031771,-383.70507184,0.00036031,2]
[394415777,1763547031780,-18367.04494889,0.00036032,2]
[394415778,1763547031789,-11267.49231751,0.00036288,2]
[394415779,1763547031826,-351.95902904,0.00036288,2]
[394415780,1763547031837,-1028.9,0.00036288,2]
[394415781,1763547031878,-766.22784662,0.00036288,2]
[394416059,1763547039563,-453.364919,0.00035669,30]
[394416060,1763547039575,-546.635081,0.00035669,30]
[394416061,1763547039584,-854.34180705,0.00035669,30]
[394416081,1763547039774,-145.65819295,0.00035669,30]
[394416083,1763547039783,-1000.0,0.00035669,30]
[394416085,1763547039793,-1000.0,0.00035669,30]
[394416087,1763547039802,-309.47536255,0.00036288,2]
[394416089,1763547039813,-1266.9924,0.00036288,2]
[394416436,1763547045878,-6227.28611481,0.00036288,2]
[394416437,1763547046071,-3781.66692947,0.00036288,2]
[394416438,1763547046080,-2538.23,0.00036659,2]
[394416439,1763547046089,-180.239,0.00036659,46]
[394416440,1763547046101,-1071.69,0.00036659,46]
[394416441,1763547046110,-10238.39,0.00036682,2]
[394416442,1763547046119,-185.96876337,0.00037138,28]
[394416443,1763547046128,-2000.0,0.000375,2]
[394416444,1763547046137,-1000.0,0.000377,2]
[394416445,1763547046146,-4188.53,0.00037866,2]
[394416446,1763547046155,-11137.36621941,0.00038,10]
[394416447,1763547046165,-278.86263574,0.00038244,30]
[394416448,1763547046174,-927.1314781,0.00038504,2]
[394416450,1763547046184,-5000.0,0.00038586,120]
[394416451,1763547046193,-560.0,0.00038592,5]
[394416452,1763547046203,-438.52,0.00038622,2]
[394416453,1763547046213,-200.0,0.00038715,2]
[394416454,1763547046223,-54744.47,0.00038715,2]
[394416455,1763547046232,-999.0,0.0003872,3]
[394416456,1763547046241,-582.94795169,0.00039227,2]
[394416457,1763547046251,-250.0,0.00039306,2]
[394416458,1763547046261,-388.86706032,0.00039349,33]
[394416459,1763547046270,-168.0,0.0003942,7]
[394416460,1763547046279,-168.0,0.00039552,120]
[394416461,1763547046288,-168.0,0.00039604,2]
[394416462,1763547046298,-195.0,0.00039634,120]
[394416463,1763547046307,-168.0,0.00039856,2]
[394416464,1763547046317,-11499.4017,0.00039899,2]
[394416465,1763547046326,-1062.0,0.00039913,120]
[394416466,1763547046336,-168.0,0.00039922,7]
[394416467,1763547046346,-33035.29565683,0.00039999,2]
[394416478,1763547061035,200.0,0.00042161,30]
[394416481,1763547278283,-1000.0,0.00022,7]
[394416482,1763547278354,-151.0,0.00033031,2]
[394416483,1763547278558,-151.0,0.00033097,2]
[394416484,1763547278748,-168.65,0.00036708,2]
[394416485,1763547278927,-202.83862469,0.00036929,2]
[394416486,1763547279130,-512.2653465,0.00038094,2]
[394416487,1763547345422,-297.42,0.00033443,2]
[394416489,1763547386844,158.44,0.0001934,2]
[394416490,1763547916873,7157.50795912,0.00021,2]
[394416491,1763547952860,9806.13159662,0.0002,2]
[394416492,1763547972110,-210.31743387,0.0002001,2]
[394416493,1763547978636,-196.17,0.0002001,2]
[394416494,1763547980293,-207.05895522,0.0002001,2]
[394416495,1763547983505,-261.57,0.0002001,2]
[394416496,1763547985821,-181.46049248,0.0002001,2]
[394416497,1763547989080,-212.53950752,0.0002001,2]
[394416498,1763548043364,1183.02840338,0.0002,2]
[394416499,1763548122368,-189.31433804,0.00019,2]
[394416500,1763548123958,-218.84,0.00019,2]
[394416506,1763548231659,-287.32390379,0.00019,2]
[394416508,1763548231714,-295.99999997,0.00019,2]
[394416509,1763548231725,-4137.56115844,0.00019,2]
[394416510,1763548231735,-361.0,0.00019,2]
[394416511,1763548231744,-300.0,0.00019999,2]
[394416512,1763548231753,-941.0,0.00019999,2]
[394416513,1763548231762,-505.0,0.00019999,2]
[394416514,1763548231773,-4801.16112221,0.0002,2]
[394416515,1763548231788,-1086.81731515,0.0002,2]
[394416516,1763548231799,-1429.16649361,0.0002,2]
[394416517,1763548231810,-10484.8083,0.0002,2]
[394416518,1763548231821,-6421.46542034,0.0002,2]
[394416519,1763548231830,-1386.09537711,0.0002,2]
[394416520,1763548231841,-2563.90462289,0.0002,2]
[394416521,1763548231852,-7237.29089092,0.0002,2]
[394416522,1763548231862,-8743.10760748,0.0002,2]
[394416523,1763548231872,-7450.88361091,0.0002001,2]
[394416524,1763548231882,-758.95361185,0.000207,2]
[394416525,1763548231896,-685.08971641,0.000207,2]
[394416526,1763548231908,-413.55879027,0.000207,2]
[394416527,1763548231919,-803.3053275,0.000207,2]
[394416528,1763548231929,-1026.2,0.000207,2]
[394416529,1763548231940,-999.0,0.000207,2]
[394416530,1763548237639,-17400.05708066,0.000207,2]
[394416531,1763548237693,-406.73837108,0.000207,2]
[394416532,1763548237703,-271.67187607,0.000209,2]
[394416533,1763548237713,-286.98105481,0.00021,2]
[394416534,1763548237750,-6201.95411415,0.00021,2]
[394416535,1763548237768,-32110.6177234,0.00021,2]
[394416536,1763548237779,-20386.46603304,0.000215,2]
[394416537,1763548237788,-5199.73286916,0.000215,2]
[394416538,1763548237798,-177.98259493,0.00021659,2]
[394416539,1763548237807,-420.0,0.00021777,2]
[394416540,1763548237817,-4114.52509585,0.00022,2]
[394416541,1763548237827,-35228.9405579,0.000225,2]
[394416542,1763548237836,-19240.60239554,0.000229,2]
[394416543,1763548237845,-51761.55818494,0.000232,2]
[394416544,1763548237855,-264.19110748,0.00023317,2]
[394416545,1763548237864,-587.0,0.00023712,2]
[394416546,1763548237874,-3600.0,0.00024,2]
[394416547,1763548237883,-16080.67589322,0.00024,2]
[394416548,1763548237892,-500.0,0.00024035,2]
[394416549,1763548237901,-1179.97,0.00024459,2]
[394416550,1763548237912,-166.66,0.00024506,30]
[394416551,1763548237922,-366.27876489,0.00024976,2]
[394416552,1763548237932,-166.66,0.00025022,30]
[394416553,1763548237941,-166.66,0.00025538,30]
[394416554,1763548237950,-207.81374934,0.00025878,2]
[394416555,1763548237959,-500.0,0.00025878,2]
[394416557,1763548237970,-500.0,0.00025878,2]
[394416559,1763548237979,-500.0,0.00025878,2]
[394416561,1763548237989,-233.33316909,0.00025878,2]
[394416563,1763548237998,-500.0,0.00025878,2]
[394416565,1763548238007,-500.0,0.00025878,2]
[394416567,1763548238017,-500.0,0.00025878,2]
[394416569,1763548238026,-500.0,0.00025878,2]
[394416571,1763548238036,-500.0,0.00025878,2]
[394416573,1763548238045,-500.0,0.00025878,2]
[394416575,1763548238055,-500.0,0.00025878,2]
[394416577,1763548238064,-500.0,0.00025878,2]
[394416579,1763548238074,-500.0,0.00025878,2]
[394416581,1763548238083,-500.0,0.00025878,2]
[394416583,1763548238093,-500.0,0.00025878,2]
[394416585,1763548238103,-500.0,0.00025878,2]
[394416587,1763548238113,-500.0,0.00025878,2]
[394416589,1763548238122,-500.0,0.00025878,2]
[394416591,1763548238131,-500.0,0.00025878,2]
[394416593,1763548238141,-500.0,0.00025878,2]
[394416595,1763548238151,-500.0,0.00025878,2]
[394416597,1763548238160,-500.0,0.00025878,2]
[394416599,1763548238174,-500.0,0.00025878,2]
[394416601,1763548238184,-500.0,0.00025878,2]
[394416603,1763548238194,-500.0,0.00025878,2]
[394416605,1763548238203,-500.0,0.00025878,2]
[394416607,1763548238212,-500.0,0.00025878,2]
[394416609,1763548238222,-500.0,0.00025878,2]
[394416611,1763548238232,-500.0,0.00025878,2]
[394416613,1763548238241,-500.0,0.00025878,2]
[394416615,1763548238251,-500.0,0.00025878,2]
[394416617,1763548238260,-500.0,0.00025878,2]
[394416619,1763548238270,-500.0,0.00025878,2]
[394416621,1763548238279,-500.0,0.00025878,2]
[394416623,1763548238289,-500.0,0.00025878,2]
[394416625,1763548238298,-500.0,0.00025878,2]
[394416627,1763548238308,-500.0,0.00025878,2]
[394416629,1763548238319,-500.0,0.00025878,2]
[394416632,1763548238334,-500.0,0.00025878,2]
[394416634,1763548238344,-500.0,0.00025878,2]
[394416636,1763548238353,-500.0,0.00025878,2]
[394416638,1763548238363,-500.0,0.00025878,2]
[394416640,1763548238374,-500.0,0.00025878,2]
[394416642,1763548238384,-500.0,0.00025878,2]
[394416644,1763548238395,-500.0,0.00025878,2]
[394416646,1763548238406,-157.32755515,0.00025878,2]
[394416648,1763548238416,-500.0,0.00025878,2]
[394416650,1763548238426,-500.0,0.00025878,2]
[394416652,1763548238435,-500.0,0.00025878,2]
[394416654,1763548238445,-500.0,0.00025878,2]
[394416655,1763548238454,-500.0,0.00025878,2]
[394416657,1763548238463,-500.0,0.00025878,2]
[394416659,1763548238473,-153.52499962,0.00025878,2]
[394416661,1763548238483,-500.0,0.00025878,2]
[394416663,1763548238493,-500.0,0.00025878,2]
[394416665,1763548238503,-500.0,0.00025878,2]
[394416667,1763548238513,-500.0,0.00025878,2]
[394416668,1763548238523,-500.0,0.00025878,2]
[394416671,1763548238536,-500.0,0.00025878,2]
[394416673,1763548238545,-500.0,0.00025878,2]
[394416674,1763548238555,-500.0,0.00025878,2]
[394416676,1763548238564,-500.0,0.00025878,2]
[394416678,1763548238574,-500.0,0.00025878,2]
[394416680,1763548238584,-600.0,0.00025878,2]
[394416682,1763548238593,-500.0,0.00025878,2]
[394416684,1763548238602,-20128.5998488,0.00025879,2]
[394416685,1763548238612,-4478.07910536,0.00026,2]
[394416687,1763548238622,-166.66,0.00026053,30]
[394416689,1763548238632,-166.66,0.00026569,30]
[394416691,1763548238642,-482.07444918,0.00026634,6]
[394416693,1763548238652,-166.66,0.00027085,30]
[394416695,1763548238661,-120340.888345,0.0002799,3]
[394416697,1763548238671,-70587.8284325,0.00028,2]
[394416699,1763548238681,-250164.33982307,0.00028,2]
[394416700,1763548238690,-50335.70227044,0.00028,2]
[394416702,1763548238700,-225.4020492,0.00028015,2]
[394416704,1763548238710,-610.11326016,0.00028293,9]
[394416706,1763548238719,-494.41967626,0.0002891,2]
[394416708,1763548238732,-8022.72588966,0.0002899,3]
[394416710,1763548238741,-16349.23501174,0.00029,2]
[394416712,1763548238751,-158.44,0.0002901,2]
[394416714,1763548238760,-500.0,0.00029899,2]
[394416715,1763548238770,-500.0,0.00029899,2]
[394416717,1763548238779,-545.34047769,0.00029899,2]
[394416719,1763548238791,-195.24457764,0.00029899,2]
[394416721,1763548238801,-500.0,0.00029899,2]
[394416723,1763548238810,-500.0,0.00029899,2]
[394416725,1763548238819,-500.0,0.00029899,2]
[394416726,1763548238828,-500.0,0.00029899,2]
[394416728,1763548238838,-195.41965409,0.00029899,2]
[394416730,1763548238847,-78048.59522551,0.000299,2]
[394416732,1763548238857,-345.36,0.000299,2]
[394416734,1763548238867,-8022.72588966,0.0002999,3]
[394416736,1763548238877,-19658.64356832,0.0003,2]
[394416738,1763548238886,-56119.67345753,0.0003,2]
[394416740,1763548238896,-157.1,0.0003,7]
[394416742,1763548238906,-13699.88786736,0.0003013,2]
[394416744,1763548238916,-5003.41499174,0.0003013,2]
[394416745,1763548238925,-7646.72989661,0.0003013,2]
[394416748,1763548238938,-300.0,0.00030185,2]
[394416749,1763548238947,-494.41967626,0.00030371,2]
[394416751,1763548238957,-8022.72588966,0.0003083,3]
[394416753,1763548238967,-2581.90547985,0.0003084,2]
[394416755,1763548238976,-32090.9035586,0.0003094,3]
[394416757,1763548238985,-33940.3117448,0.0003094,3]
[394416759,1763548238995,-150.45,0.0003094,2]
[394416761,1763548239005,-66582.81123012,0.0003095,2]
[394416763,1763548239015,-898.86075948,0.0003161,16]
[394416765,1763548239024,-494.41967626,0.00031832,2]
[394416766,1763548239034,-189.82,0.00032729,91]
[394416768,1763548239043,-4774.00981472,0.000328,2]
[394416770,1763548239053,-440.84482183,0.0003299,2]
[394416772,1763548239064,-50982.5856033,0.00033,2]
[394416774,1763548239074,-1058.0658315,0.00033269,20]
[394416776,1763548239084,-494.41967626,0.00033294,2]
[394416778,1763548239094,-11313.4372483,0.00034562,3]
[394416780,1763548239103,-857.352,0.00034572,39]
[394416781,1763548239113,-180.239,0.00034572,39]
[394416783,1763548239122,-494.41967626,0.00034755,2]
[394416785,1763548239135,-1226.38041387,0.00034928,23]
[394416787,1763548239145,-162.0,0.00035743,120]
[394416789,1763548239155,-150.45,0.0003599,2]
[394416791,1763548239166,-150.45,0.0003599,2]
[394416793,1763548239176,-231831.77491602,0.00036,2]
[394416795,1763548239186,-10727.92747089,0.00036,2]
[394416797,1763548239196,-494.41967626,0.00036216,2]
[394416799,1763548239206,-8022.72588966,0.00036254,3]
[394416801,1763548239216,-6227.28,0.00036264,2]
[394416802,1763548239225,-157.1,0.000363,14]
[394416804,1763548239235,-2119.97,0.00036363,2]
[394416806,1763548239244,-2500.0,0.00036526,2]
[394416808,1763548239254,-1403.33576224,0.00036586,27]
[394416810,1763548239263,-200.0,0.00036704,2]
[394416812,1763548239272,-500.0,0.00036986,15]
[394416814,1763548239281,-500.0,0.00036986,15]
[394416816,1763548239290,-500.0,0.00036986,15]
[394416818,1763548239300,-1000.0,0.00037161,30]
[394416819,1763548239309,-287.951,0.00037332,2]
[394416821,1763548239319,-162.0,0.0003753,120]
[394416823,1763548239331,-494.41967626,0.00037677,2]
[394416825,1763548239340,-49716.19758602,0.0003797,2]
[394416827,1763548239349,-2000.0,0.000381,2]
[394416829,1763548239358,-150.0,0.00038244,2]
[394416831,1763548239370,-1588.52885987,0.00038245,30]
[394416833,1763548239380,-512.2653465,0.00038259,2]
[394416835,1763548239389,-158.44,0.00038679,2]
[394416837,1763548239398,-2673.11395617,0.00039,2]
[394416838,1763548239413,-44416.90733641,0.00039,2]
[394416840,1763548239423,-11313.4372483,0.00039093,4]
[394416842,1763548239433,-2751.0,0.00039103,120]
[394416844,1763548239443,-494.41967626,0.00039139,2]
[394416846,1763548239453,-150.45,0.00039183,2]
[394416848,1763548239462,-8022.72588966,0.00039193,4]
[394416850,1763548239472,-12421.54,0.00039203,2]
[394416851,1763548239483,-162.0,0.00039406,120]
[394416852,1763548239493,-161.19,0.00039444,2]
[394416853,1763548239503,-2480.27184,0.000396,2]
[394416854,1763548239513,-8022.72588966,0.00039789,4]
[394416855,1763548239528,-11313.4372483,0.00039789,4]
[394416856,1763548239542,-1000.0,0.00039799,2]
[394416857,1763548239551,-1628.23050312,0.00039799,2]
[394416858,1763548239562,-5328.3868,0.00039799,2]
[394416859,1763548239572,-2798.77108043,0.00039838,2]
[394416860,1763548239583,-8022.72588966,0.00039878,4]
[394416861,1763548239592,-16045.4517793,0.00039879,4]
[394416862,1763548239602,-22626.8744965,0.00039879,4]
[394416863,1763548239612,-150.45,0.00039879,2]
[394416864,1763548239622,-150.45,0.00039879,2]
[394416865,1763548239633,-500.0,0.00039888,2]
[394416866,1763548239643,-627.09070998,0.00039888,120]
[394416867,1763548239654,-8022.72588966,0.00039888,4]
[394416869,1763548239665,-8022.72588966,0.00039889,4]
[394416870,1763548239675,-260209.05671,0.00039889,4]
[394416871,1763548239685,-150.45,0.00039889,2]
[394416872,1763548239695,-150.45,0.00039889,2]
[394416873,1763548239705,-150.45,0.00039889,2]
[394416874,1763548239715,-150.45,0.00039889,2]
[394416875,1763548239725,-150.45,0.00039889,2]
[394416876,1763548239735,-500.0,0.00039898,120]
[394416877,1763548239746,-500.0,0.00039898,120]
[394416878,1763548239756,-500.0,0.00039898,120]
[394416879,1763548239767,-500.0,0.00039898,120]
[394416880,1763548239778,-500.0,0.00039898,120]
[394416881,1763548239788,-552.70690128,0.00039898,120]
[394416882,1763548239798,-500.0,0.00039898,120]
[394416883,1763548239809,-500.0,0.00039898,120]
[394416884,1763548239819,-500.0,0.00039898,120]
[394416885,1763548239829,-500.0,0.00039898,2]
[394416886,1763548239839,-500.0,0.00039898,2]
[394416887,1763548239849,-500.0,0.00039898,2]
[394416888,1763548239860,-450.97471094,0.00039898,30]
[394416889,1763548239870,-500.0,0.00039898,2]
[394416890,1763548239879,-500.0,0.00039898,2]
[394416891,1763548239889,-500.0,0.00039898,2]
[394416892,1763548239898,-500.0,0.00039898,31]
[394416893,1763548239907,-150.0,0.00039898,31]
[394416894,1763548239921,-150.0,0.00039898,2]
[394416895,1763548239931,-150.0,0.00039898,31]
[394416896,1763548239941,-150.0,0.00039898,31]
[394416897,1763548239951,-150.0,0.00039898,2]
[394416898,1763548239960,-150.0,0.00039898,31]
[394416899,1763548239970,-1781.60834868,0.00039903,34]
[394416900,1763548239979,-168.0,0.00039917,2]
[394416901,1763548239989,-500.0,0.00039921,7]
[394416902,1763548239999,-500.0,0.00039925,31]
[394416903,1763548240010,-150.0,0.00039925,31]
[394416904,1763548240020,-150.0,0.00039925,31]
[394416905,1763548240029,-500.0,0.00039953,31]
[394416906,1763548240039,-204.29749888,0.00039953,31]
[394416907,1763548240048,-200.0,0.00039953,31]
[394416908,1763548240058,-168.0,0.0003997,2]
[394416909,1763548240068,-1174.13730954,0.00039972,2]
[394416910,1763548240078,-500.0,0.00039998,2]
[394416911,1763548240088,-30611.10185957,0.00039999,2]
[394416912,1763548240097,-11304.25456262,0.00039999,2]
[394416913,1763548240107,-4856.86736663,0.0004,10]
[394416914,1763548240116,-150.0,0.00040049,2]
[394416915,1763548240125,-438.52,0.0004007,2]
[394416916,1763548240135,-500.0,0.00040156,2]
[394416917,1763548240144,-166.66,0.00040157,2]
[394416918,1763548240154,-168.0,0.00040171,2]
[394416919,1763548240164,-168.0,0.00040303,2]
[394416920,1763548240173,-168.0,0.00040305,2]
[394416921,1763548240183,-822.54211807,0.00040388,2]
[394416922,1763548240192,-271.63759392,0.00040389,2]
[394416923,1763548240202,-150.0,0.00040473,5]
[394416924,1763548240211,-150.0,0.00040473,2]
[394416925,1763548240220,-150.0,0.00040473,120]
[394416926,1763548240234,-158.86102011,0.00040488,60]
[394416927,1763548240244,-500.0,0.00040488,120]
[394416928,1763548240253,-500.0,0.00040488,120]
[394416929,1763548240263,-150.0,0.000405,5]
[394416930,1763548240273,-258.30079919,0.000405,2]
[394416931,1763548240283,-170.0,0.000405,120]
[394416932,1763548240294,-550.38,0.00040521,2]
[394416933,1763548240304,-250.0,0.00040528,5]
[394416934,1763548240314,-639.0,0.00040573,30]
[394416935,1763548240326,-494.41967626,0.000406,15]
[394416936,1763548240338,-2480.27184,0.000406,5]
[394416937,1763548240349,-168.0,0.00040614,120]
[394416938,1763548240359,-6220.0,0.00040615,5]
[394416939,1763548240371,-1709.7427,0.00040665,30]
[394416940,1763548240381,-168.0,0.00040794,7]
[394416941,1763548240391,-150.0,0.00040802,2]
[394416942,1763548240402,-168.0,0.00040827,2]
[394416943,1763548240412,-168.0,0.00040855,2]
[394416944,1763548240422,-537.99854198,0.00040881,2]
[394416945,1763548240431,-150.45,0.0004099,2]
[394416946,1763548240441,-639.0,0.00040991,30]
[394416947,1763548240451,-151.0,0.00041,90]
[394416948,1763548240461,-165.0,0.00041,90]
[394416949,1763548240471,-486.71535261,0.00041,7]
[394416950,1763548240481,-24095.77631032,0.00041,2]
[394416951,1763548240490,-500.0,0.00041066,2]
[394416952,1763548240503,-813.01,0.00041095,2]
[394416953,1763548240513,-3012.31,0.00041095,2]
[394416954,1763548240523,-300.0,0.00041095,2]
[394416955,1763548240533,-154.89,0.00041096,2]
[394416956,1763548240543,-200.0,0.00041098,2]
[394416957,1763548240554,-162.94935356,0.00041177,2]
[394416958,1763548240564,-481.44,0.00041205,30]
[394416959,1763548240574,-700.6,0.00041205,30]
[394416960,1763548240583,-478.61,0.00041205,30]
[394416961,1763548240593,-478.61,0.00041205,30]
[394416962,1763548240603,-478.61,0.00041205,30]
[394416963,1763548240613,-478.61,0.00041205,30]
[394416964,1763548240622,-478.61,0.00041205,30]
[394416965,1763548240632,-478.61,0.00041205,30]
[394416966,1763548240643,-478.61,0.00041205,30]
[394416967,1763548240653,-478.61,0.00041205,30]
[394416968,1763548240664,-478.61,0.00041205,30]
[394416969,1763548240674,-478.61,0.00041205,30]
[394416970,1763548240684,-478.61,0.00041205,30]
[394416971,1763548240695,-700.83,0.00041205,30]
[394416972,1763548240711,-153.413991,0.0004132,2]
[394416973,1763548240721,-1209.94,0.00041342,30]
[394416974,1763548240732,-1209.94,0.00041342,30]
[394416975,1763548240742,-1209.94,0.00041342,30]
[394416976,1763548240753,-1209.94,0.00041342,30]
[394416977,1763548240764,-1209.94,0.00041342,30]
[394416978,1763548240774,-2371.95,0.00041342,30]
[394416979,1763548240784,-813.01,0.00041369,2]
[394416980,1763548240794,-3012.31,0.00041369,2]
[394416981,1763548240803,-300.0,0.00041369,2]
[394416982,1763548240813,-162.0,0.00041376,120]
[394416983,1763548240826,-639.0,0.0004141,30]
[394416984,1763548240836,-150.0,0.00041419,2]
[394416985,1763548240846,-500.91389583,0.00041473,10]
[394416986,1763548240855,-500.0,0.00041473,10]
[394416987,1763548240865,-566.88496045,0.00041473,10]
[394416988,1763548240874,-168.0,0.00041476,2]
[394416989,1763548240883,-168.0,0.00041479,120]
[394416990,1763548240893,-166.66,0.00041482,2]
[394416991,1763548240902,-1600.0,0.00041492,2]
[394416992,1763548240912,-822.0,0.00041492,2]
[394416993,1763548240921,-794.0,0.00041492,2]
[394416994,1763548240931,-1276.0,0.00041492,2]
[394416995,1763548240940,-907.0,0.00041492,2]
[394416996,1763548240949,-1191.0,0.00041492,2]
[394416997,1763548240958,-609.0,0.00041492,2]
[394416998,1763548240968,-1605.0,0.00041492,2]
[394416999,1763548240977,-705.0,0.00041492,2]
[394417000,1763548240987,-347.82,0.00041492,30]
[394417001,1763548240997,-153.0,0.00041501,120]
[394417002,1763548241006,-153.0,0.00041501,120]
[394417003,1763548241016,-153.0,0.00041501,120]
[394417004,1763548241026,-153.0,0.00041501,120]
[394417005,1763548241036,-153.0,0.00041501,120]
[394417006,1763548241045,-153.0,0.00041501,120]
[394417007,1763548241054,-153.0,0.00041501,120]
[394417008,1763548241064,-153.0,0.00041501,120]
[394417009,1763548241073,-153.0,0.00041501,120]
[394417010,1763548241083,-153.0,0.00041501,120]
[394417011,1763548241093,-153.0,0.00041501,120]
[394417012,1763548241103,-153.0,0.00041501,120]
[394417013,1763548241113,-153.0,0.00041501,120]
[394417014,1763548241124,-153.0,0.00041501,120]
[394417015,1763548241135,-153.0,0.00041501,120]
[394417016,1763548241146,-153.0,0.00041501,120]
[394417017,1763548241155,-438.52,0.00041519,2]
[394417018,1763548241166,-500.0,0.00041573,10]
[394417019,1763548241176,-6447.40013926,0.0004159,120]
[394417020,1763548241185,-150.45,0.0004159,2]
[394417021,1763548241195,-440.84482183,0.0004159,7]
[394417022,1763548241204,-150.45,0.0004159,2]
[394417023,1763548241214,-150.45,0.0004159,2]
[394417024,1763548241223,-150.45,0.0004159,2]
[394417025,1763548241233,-150.45,0.0004159,2]
[394417026,1763548241245,-500.0,0.00041599,120]
[394417027,1763548241255,-323.81893745,0.00041599,120]
[394417028,1763548241265,-500.0,0.00041599,2]
[394417029,1763548241275,-500.0,0.00041599,2]
[394417030,1763548241284,-603775.03421816,0.000416,30]
[394417031,1763548241294,-2480.27184,0.000416,10]
[394417032,1763548241303,-122959.8632,0.000416,120]
[394417033,1763548241314,-153.0,0.00041614,120]
[394417034,1763548241327,-153.0,0.00041614,120]
[394417035,1763548241337,-153.0,0.00041614,120]
[394417036,1763548241346,-153.0,0.00041614,120]
[394417037,1763548241355,-153.0,0.00041614,120]
[394417038,1763548241365,-153.0,0.00041614,120]
[394417039,1763548241375,-153.0,0.00041614,120]
[394417040,1763548241384,-153.0,0.00041614,120]
[394417041,1763548241394,-153.0,0.00041614,120]
[394417042,1763548241405,-153.0,0.00041614,120]
[394417043,1763548241415,-153.0,0.00041614,120]
[394417044,1763548241424,-153.0,0.00041614,120]
[394417045,1763548241434,-153.0,0.00041614,120]
[394417046,1763548241443,-153.0,0.00041614,120]
[394417047,1763548241452,-153.0,0.00041614,120]
[394417048,1763548241462,-153.0,0.00041614,120]
[394417049,1763548241471,-153.0,0.00041614,120]